fUST/lending_fUST_20241106
["ID","MTS","AMOUNT","RATE_DAILY","PERIOD"]
[341381016,1730861443989,-544.26047387,0.00038356,14]
[341381017,1730861443999,-502.73185372,0.00038356,14]
[341381018,1730861444008,-500.0,0.00038356,14]
[341381019,1730861444018,-500.0,0.00038356,14]
[341381020,1730861444029,-500.0,0.00038356,14]
[341381021,1730861444039,-500.0,0.00038356,14]
[341381022,1730861444048,-633.15,0.00038356,14]
[341381023,1730861444059,-500.0,0.00038356,14]
[341381024,1730861444069,-500.0,0.00038356,14]
[341381025,1730861444079,-506.40440792,0.00038356,14]
[341381026,1730861444090,-500.0,0.00038356,14]
[341381027,1730861444099,-500.0,0.00038356,14]
[341381028,1730861444108,-508.95770234,0.00038356,14]
[341381029,1730861444117,-501.62051899,0.00038356,14]
[341381030,1730861444127,-500.0,0.00038356,2]
[341381031,1730861444137,-500.0,0.00038356,14]
[341381032,1730861444150,-500.0,0.00038356,14]
[341381033,1730861444160,-500.0,0.00038356,14]
[341381034,1730861444169,-500.0,0.00038356,14]
[341381035,1730861444179,-506.67050815,0.00038356,14]
[341381036,1730861444188,-500.0,0.00038356,14]
[341381037,1730861444198,-500.0,0.00038356,14]
[341381038,1730861444207,-500.0,0.00038356,14]
[341381039,1730861444217,-500.0,0.00038356,14]
[341381040,1730861444228,-500.0,0.00038356,14]
[341381041,1730861444239,-200.0,0.00038356,7]
[341381042,1730861444249,-213.936012,0.00038356,14]
[341381043,1730861444259,-156.616434,0.00038356,14]
[341381044,1730861444270,-213.936012,0.00038356,14]
[341381045,1730861444279,-577.68,0.00038356,14]
[341381046,1730861444290,-425.374159,0.00038356,120]
[341381047,1730861444300,-512.50676434,0.00038373,5]
[341381048,1730861444310,-500.0,0.00038373,5]
[341381049,1730861444320,-599.59441399,0.00038373,5]
[341381050,1730861444330,-502.07634981,0.00038373,5]
[341381051,1730861444340,-500.59757276,0.00038373,5]
[341381052,1730861444351,-500.7066088,0.00038373,5]
[341381053,1730861444361,-502.28260143,0.00038373,2]
[341381054,1730861444370,-502.34998704,0.00038373,5]
[341381055,1730861444380,-157.73696894,0.00038373,5]
[341381056,1730861444389,-500.0,0.00038373,5]
[341381057,1730861444402,-305.42112424,0.00038373,5]
[341381058,1730861444411,-500.0,0.00038373,5]
[341381059,1730861444420,-500.0,0.00038373,5]
[341381060,1730861444429,-501.20016915,0.00038373,5]
[341381061,1730861444441,-503.7293701,0.00038373,5]
[341381062,1730861444451,-500.0,0.00038373,5]
[341381063,1730861444461,-500.0,0.00038373,2]
[341381064,1730861444470,-1343.35588004,0.00038517,2]
[341381065,1730861444480,-805.57059969,0.0003853,2]
[341381066,1730861444490,-500.0,0.00038628,2]
[341381067,1730861444499,-594.43590418,0.00038629,2]
[341381068,1730861444509,-340.61858136,0.00038629,14]
[341381069,1730861444520,-151.0,0.00038629,14]
[341381070,1730861444530,-151.0,0.00038629,14]
[341381071,1730861444540,-500.0,0.00038629,7]
[341381072,1730861444549,-1000.0,0.00038629,120]
[341381073,1730861444559,-500.0,0.0003863,14]
[341381077,1730861444568,-500.0,0.0003863,14]
[341381081,1730861444577,-500.0,0.0003863,14]
[341381084,1730861444587,-500.0,0.0003863,14]
[341381086,1730861444596,-500.0,0.0003863,14]
[341381088,1730861444607,-500.0,0.0003863,14]
[341381090,1730861444617,-500.0,0.0003863,14]
[341381093,1730861444627,-500.0,0.0003863,14]
[341381096,1730861444637,-500.0,0.0003863,14]
[341381098,1730861444648,-500.0,0.0003863,14]
[341381100,1730861444657,-514.27132901,0.0003863,14]
[341381102,1730861444667,-525.94504674,0.0003863,14]
[341381104,1730861444676,-500.0,0.0003863,7]
[341381106,1730861444686,-521.26957413,0.0003863,14]
[341381108,1730861444695,-500.0,0.0003863,14]
[341381109,1730861444706,-500.0,0.0003863,14]
[341381112,1730861444716,-519.45475767,0.0003863,14]
[341381114,1730861444726,-500.0,0.0003863,14]
[341381116,1730861444736,-511.65362453,0.0003863,14]
[341381118,1730861444745,-500.0,0.0003863,14]
[341381119,1730861444755,-151.0,0.0003863,14]
[341381121,1730861444764,-528.6854247,0.0003863,14]
[341381123,1730861444774,-173.88160056,0.0003863,14]
[341381125,1730861444783,-509.72652579,0.0003863,14]
[341381127,1730861444793,-500.0,0.0003863,14]
[341381129,1730861444802,-500.0,0.0003863,14]
[341381131,1730861444812,-500.0,0.0003863,14]
[341381133,1730861444821,-500.0,0.0003863,14]
[341381135,1730861444831,-500.0,0.0003863,14]
[341381137,1730861444841,-153.238948,0.0003863,14]
[341381139,1730861444851,-500.0,0.0003863,14]
[341381142,1730861444861,-500.0,0.0003863,14]
[341381144,1730861444871,-474.90294503,0.0003863,14]
[341381145,1730861444881,-500.0,0.0003863,14]
[341381146,1730861444890,-500.0,0.0003863,14]
[341381147,1730861444903,-520.63460532,0.0003863,14]
[341381149,1730861444913,-500.0,0.0003863,14]
[341381150,1730861444923,-499.19005788,0.0003863,14]
[341381152,1730861444932,-512.43489218,0.0003863,14]
[341381153,1730861444942,-500.0,0.0003863,14]
[341381154,1730861444952,-500.0,0.0003863,14]
[341381155,1730861444963,-645.74603002,0.0003863,14]
[341381156,1730861444973,-500.0,0.0003863,14]
[341381157,1730861444983,-500.0,0.0003863,14]
[341381158,1730861444992,-500.0,0.0003863,14]
[341381159,1730861445002,-500.0,0.0003863,14]
[341381160,1730861445011,-500.0,0.0003863,14]
[341381161,1730861445021,-500.0,0.0003863,14]
[341381162,1730861445032,-502.28102588,0.0003863,10]
[341381163,1730861445042,-500.0,0.0003863,14]
[341381164,1730861445052,-500.0,0.0003863,14]
[341381165,1730861445062,-500.0,0.0003863,14]
[341381166,1730861445072,-500.0,0.0003863,14]
[341381167,1730861445081,-500.0,0.0003863,14]
[341381168,1730861445091,-500.0,0.0003863,14]
[341381169,1730861445101,-250.0,0.0003863,14]
[341381170,1730861445111,-500.0,0.0003863,14]
[341381171,1730861445120,-510.09469968,0.0003863,14]
[341381172,1730861445130,-500.0,0.0003863,14]
[341381173,1730861445139,-151.61645,0.0003863,14]
[341381174,1730861445154,-517.47231187,0.0003863,14]
[341381175,1730861445164,-500.0,0.0003863,14]
[341381176,1730861445230,-500.0,0.0003863,14]
[341381177,1730861445242,-500.0,0.0003863,14]
[341381178,1730861445253,-500.0,0.0003863,120]
[341381179,1730861445263,-500.0,0.0003863,14]
[341381180,1730861445275,-500.0,0.0003863,14]
[341381181,1730861445285,-500.0,0.0003863,14]
[341381182,1730861445295,-500.0,0.0003863,14]
[341381183,1730861445306,-518.66498478,0.0003863,14]
[341381184,1730861445316,-518.59,0.0003863,14]
[341381185,1730861445326,-513.70730286,0.0003863,14]
[341381186,1730861445336,-500.0,0.0003863,14]
[341381187,1730861445347,-516.04423998,0.0003863,14]
[341381188,1730861445357,-500.0,0.0003863,14]
[341381189,1730861445367,-504.24281776,0.0003863,14]
[341381190,1730861445377,-500.0,0.0003863,14]
[341381191,1730861445388,-528.37894315,0.0003863,14]
[341381192,1730861445403,-578.62859384,0.0003863,14]
[341381195,1730861445413,-505.58886083,0.0003863,14]
[341381196,1730861445423,-508.12782796,0.0003863,14]
[341381198,1730861445433,-502.31771337,0.0003863,14]
[341381199,1730861445447,-515.8939361,0.0003863,14]
[341381200,1730861445457,-500.0,0.0003863,14]
[341381201,1730861445466,-504.39666741,0.0003863,14]
[341381202,1730861445476,-500.0,0.0003863,14]
[341381203,1730861445486,-500.0,0.0003863,14]
[341381204,1730861445495,-500.0,0.0003863,14]
[341381205,1730861445508,-514.83978869,0.0003863,14]
[341381206,1730861445521,-500.0,0.0003863,14]
[341381208,1730861445532,-578.89119802,0.0003863,14]
[341381210,1730861445542,-500.0,0.0003863,14]
[341381212,1730861445552,-500.0,0.0003863,14]
[341381214,1730861445562,-500.0,0.0003863,14]
[341381216,1730861445572,-500.0,0.0003863,14]
[341381218,1730861445582,-500.0,0.0003863,14]
[341381219,1730861445592,-151.0,0.0003863,14]
[341381221,1730861445603,-220.720511,0.0003863,14]
[341381223,1730861445613,-552.31795147,0.0003863,14]
[341381224,1730861445623,-500.0,0.0003863,14]
[341381225,1730861445632,-500.0,0.0003863,14]
[341381226,1730861445642,-151.0,0.0003863,14]
[341381227,1730861445654,-151.0,0.0003863,14]
[341381228,1730861445664,-534.03682469,0.0003863,14]
[341381230,1730861445674,-500.0,0.0003863,14]
[341381231,1730861445684,-403.54388428,0.0003863,14]
[341381232,1730861445694,-1000.0,0.0003863,5]
[341381233,1730861445704,-503.35384498,0.0003863,14]
[341381234,1730861445714,-504.16000435,0.0003863,14]
[341381235,1730861445724,-550.9943595,0.0003863,14]
[341381236,1730861445735,-570.58087832,0.0003863,14]
[341381237,1730861445746,-151.0,0.0003863,14]
[341381238,1730861445756,-510.52947577,0.0003863,14]
[341381239,1730861445765,-513.4009327,0.0003863,14]
[341381240,1730861445775,-244.169282,0.0003863,14]
[341381241,1730861445785,-500.0,0.0003863,14]
[341381242,1730861445796,-500.0,0.0003863,14]
[341381243,1730861445808,-500.0,0.0003863,14]
[341381244,1730861445818,-500.0,0.0003863,14]
[341381245,1730861445828,-500.0,0.0003863,14]
[341381246,1730861445839,-503.46341412,0.0003863,14]
[341381247,1730861445849,-509.66725824,0.0003863,14]
[341381248,1730861445860,-500.0,0.0003863,14]
[341381249,1730861445871,-500.0,0.0003863,14]
[341381250,1730861445882,-500.87187042,0.0003863,14]
[341381251,1730861445893,-505.50520827,0.0003863,14]
[341381252,1730861445905,-500.0,0.0003863,14]
[341381253,1730861445915,-655.62,0.0003863,14]
[341381254,1730861445924,-504.22208521,0.0003863,14]
[341381257,1730861445934,-500.0,0.0003863,14]
[341381259,1730861445946,-500.0,0.0003863,14]
[341381260,1730861445955,-500.0,0.0003863,14]
[341381263,1730861445967,-224.31482418,0.0003863,14]
[341381265,1730861445978,-500.0,0.0003863,14]
[341381267,1730861445988,-500.0,0.0003863,14]
[341381269,1730861445997,-500.0,0.0003863,14]
[341381271,1730861446007,-151.0,0.0003863,14]
[341381273,1730861446017,-151.0,0.0003863,14]
[341381275,1730861446029,-500.0,0.0003863,14]
[341381277,1730861446039,-500.0,0.0003863,14]
[341381279,1730861446049,-151.0,0.0003863,14]
[341381281,1730861446060,-151.0,0.0003863,14]
[341381283,1730861446071,-500.0,0.0003863,14]
[341381285,1730861446081,-151.0,0.0003863,14]
[341381287,1730861446091,-519.72598814,0.0003863,14]
[341381289,1730861446102,-151.0,0.0003863,14]
[341381290,1730861446112,-503.06607283,0.0003863,14]
[341381291,1730861446123,-500.0,0.0003863,14]
[341381292,1730861446134,-520.56294527,0.0003863,14]
[341381293,1730861446144,-151.0,0.0003863,14]
[341381294,1730861446156,-151.0,0.0003863,14]
[341381295,1730861446165,-835.42,0.0003863,14]
[341381296,1730861446174,-500.0,0.0003863,14]
[341381297,1730861446183,-500.0,0.0003863,14]
[341381299,1730861446192,-503.77198728,0.0003863,14]
[341381301,1730861446202,-1435.69,0.0003863,14]
[341381303,1730861446211,-500.0,0.0003863,14]
[341381305,1730861446221,-500.0,0.0003863,14]
[341381307,1730861446231,-191.43887973,0.0003863,14]
[341381308,1730861446241,-500.0,0.0003863,14]
[341381310,1730861446250,-500.0,0.0003863,14]
[341381311,1730861446259,-500.0,0.0003863,14]
[341381312,1730861446269,-243.227724,0.0003863,14]
[341381313,1730861446279,-243.227724,0.0003863,14]
[341381314,1730861446290,-397.94470971,0.0003863,14]
[341381315,1730861446300,-500.0,0.0003863,14]
[341381316,1730861446311,-500.0,0.0003863,14]
[341381317,1730861446321,-500.0,0.0003863,14]
[341381318,1730861446331,-151.0,0.0003863,14]
[341381319,1730861446341,-151.0,0.0003863,14]
[341381320,1730861446350,-500.0,0.0003863,14]
[341381321,1730861446360,-500.0,0.0003863,14]
[341381322,1730861446369,-509.42240507,0.0003863,14]
[341381323,1730861446379,-500.0,0.0003863,14]
[341381324,1730861446389,-526.24796134,0.0003863,14]
[341381325,1730861446401,-500.0,0.0003863,14]
[341381326,1730861446411,-500.0,0.0003863,14]
[341381327,1730861446421,-151.0,0.0003863,14]
[341381328,1730861446432,-151.0,0.0003863,14]
[341381329,1730861446445,-500.0,0.0003863,14]
[341381330,1730861446455,-500.0,0.0003863,14]
[341381331,1730861446466,-529.94110027,0.0003863,14]
[341381335,1730861446476,-500.0,0.0003863,14]
[341381336,1730861446543,-151.0,0.0003863,14]
[341381337,1730861446553,-151.0,0.0003863,14]
[341381338,1730861446564,-500.0,0.0003863,14]
[341381339,1730861446575,-3000.0,0.0003863,90]
[341381340,1730861446586,-3000.0,0.0003863,90]
[341381341,1730861446595,-504.75796811,0.0003863,14]
[341381342,1730861446604,-3000.0,0.0003863,90]
[341381343,1730861446614,-1240.877721,0.0003863,90]
[341381344,1730861446624,-500.0,0.0003863,14]
[341381345,1730861446635,-500.0,0.0003863,14]
[341381346,1730861446644,-508.71384814,0.0003863,14]
[341381347,1730861446655,-151.0,0.0003863,14]
[341381348,1730861446665,-151.0,0.0003863,14]
[341381349,1730861446676,-513.17132458,0.0003863,14]
[341381350,1730861446686,-500.0,0.0003863,14]
[341381351,1730861446696,-505.00236432,0.0003863,14]
[341381352,1730861446706,-500.0,0.0003863,14]
[341381353,1730861446718,-500.0,0.0003863,14]
[341381354,1730861446728,-500.0,0.0003863,14]
[341381355,1730861446741,-500.0,0.0003863,14]
[341381356,1730861446754,-500.0,0.0003863,14]
[341381357,1730861446764,-524.60156571,0.0003863,14]
[341381358,1730861446775,-503.96504705,0.0003863,14]
[341381359,1730861446785,-500.0,0.0003863,14]
[341381360,1730861446795,-589.09517693,0.0003863,14]
[341381361,1730861446805,-500.0,0.0003863,14]
[341381362,1730861446814,-500.0,0.0003863,14]
[341381363,1730861446824,-500.0,0.0003863,14]
[341381364,1730861446833,-312.68409465,0.0003863,14]
[341381365,1730861446842,-500.0,0.0003863,14]
[341381366,1730861446851,-500.0,0.0003863,14]
[341381367,1730861446860,-500.0,0.0003863,14]
[341381368,1730861446870,-532.86319577,0.0003863,14]
[341381369,1730861446879,-522.9367212,0.0003863,14]
[341381370,1730861446888,-500.0,0.0003863,14]
[341381371,1730861446898,-200.920867,0.0003863,14]
[341381372,1730861446908,-200.920867,0.0003863,14]
[341381373,1730861446917,-151.0,0.0003863,14]
[341381374,1730861446927,-151.0,0.0003863,14]
[341381375,1730861446936,-151.0,0.0003863,14]
[341381376,1730861446946,-151.0,0.0003863,14]
[341381377,1730861446955,-200.920867,0.0003863,14]
[341381378,1730861446964,-200.920867,0.0003863,14]
[341381379,1730861446973,-648.83090854,0.0003863,14]
[341381380,1730861446983,-151.0,0.0003863,14]
[341381381,1730861446992,-151.0,0.0003863,14]
[341381382,1730861447001,-288.45194175,0.0003863,14]
[341381383,1730861447011,-506.433219,0.0003863,14]
[341381384,1730861447020,-504.77841012,0.0003863,14]
[341381385,1730861447030,-500.0,0.0003863,14]
[341381386,1730861447040,-504.85562288,0.0003863,14]
[341381387,1730861447049,-510.5069307,0.0003863,14]
[341381388,1730861447058,-500.0,0.0003863,14]
[341381389,1730861447067,-151.0,0.0003863,14]
[341381390,1730861447076,-151.0,0.0003863,14]
[341381391,1730861447086,-507.09088254,0.0003863,14]
[341381392,1730861447096,-151.0,0.0003863,14]
[341381393,1730861447105,-151.0,0.0003863,14]
[341381394,1730861447114,-230.02918208,0.0003863,14]
[341381395,1730861447124,-500.0,0.0003863,14]
[341381396,1730861447133,-504.27815088,0.0003863,14]
[341381397,1730861447143,-501.96259513,0.0003863,14]
[341381398,1730861447154,-500.0,0.0003863,14]
[341381399,1730861447163,-500.0,0.0003863,14]
[341381400,1730861447173,-500.0,0.0003863,14]
[341381401,1730861447182,-341.20643542,0.0003863,14]
[341381402,1730861447192,-500.0,0.0003863,14]
[341381403,1730861447202,-500.0,0.0003863,14]
[341381404,1730861447211,-151.0,0.0003863,14]
[341381405,1730861447221,-151.0,0.0003863,14]
[341381406,1730861447231,-500.0,0.0003863,14]
[341381407,1730861447240,-151.0,0.0003863,14]
[341381408,1730861447249,-151.0,0.0003863,14]
[341381409,1730861447259,-500.0,0.0003863,14]
[341381410,1730861447268,-518.21220481,0.0003863,14]
[341381411,1730861447277,-500.0,0.0003863,14]
[341381412,1730861447287,-500.0,0.0003863,14]
[341381413,1730861447296,-500.0,0.0003863,14]
[341381414,1730861447305,-510.07802866,0.0003863,14]
[341381415,1730861447315,-500.0,0.0003863,7]
[341381416,1730861447323,-456.87001486,0.0003863,14]
[341381417,1730861447332,-500.0,0.0003863,14]
[341381418,1730861447341,-500.0,0.0003863,14]
[341381419,1730861447351,-500.0,0.0003863,14]
[341381420,1730861447360,-511.19401537,0.0003863,14]
[341381421,1730861447370,-506.15754707,0.0003863,14]
[341381422,1730861447379,-500.0,0.0003863,14]
[341381423,1730861447389,-500.0,0.0003863,14]
[341381424,1730861447401,-500.0,0.0003863,14]
[341381425,1730861447411,-500.0,0.0003863,14]
[341381426,1730861447421,-500.0,0.0003863,14]
[341381427,1730861447432,-500.0,0.0003863,14]
[341381428,1730861447441,-519.13322794,0.0003863,14]
[341381429,1730861447451,-524.3102921,0.0003863,14]
[341381430,1730861447460,-189.708758,0.0003863,14]
[341381431,1730861447470,-500.0,0.0003863,14]
[341381432,1730861447480,-189.708758,0.0003863,14]
[341381433,1730861447489,-2864.36,0.0003863,14]
[341381434,1730861447499,-500.0,0.0003863,14]
[341381435,1730861447510,-500.0,0.0003863,14]
[341381436,1730861447519,-500.0,0.0003863,14]
[341381437,1730861447528,-500.0,0.0003863,14]
[341381438,1730861447538,-189.708758,0.0003863,14]
[341381439,1730861447547,-189.708758,0.0003863,14]
[341381440,1730861447556,-1465.03,0.0003863,14]
[341381441,1730861447566,-500.0,0.0003863,14]
[341381442,1730861447575,-500.0,0.0003863,14]
[341381443,1730861447585,-500.0,0.0003863,14]
[341381444,1730861447594,-500.0,0.0003863,14]
[341381445,1730861447603,-505.96939981,0.0003863,14]
[341381446,1730861447661,-1719.33,0.0003863,14]
[341381447,1730861447670,-503.59537343,0.0003863,14]
[341381448,1730861447679,-513.76803958,0.0003863,14]
[341381449,1730861447689,-618.68385013,0.0003863,14]
[341381450,1730861447699,-500.0,0.0003863,14]
[341381451,1730861447709,-500.0,0.0003863,14]
[341381452,1730861447718,-500.0,0.0003863,14]
[341381453,1730861447728,-500.0,0.0003863,14]
[341381454,1730861447737,-500.0,0.0003863,14]
[341381455,1730861447746,-500.0,0.0003863,14]
[341381456,1730861447755,-500.0,0.0003863,14]
[341381457,1730861447764,-500.0,0.0003863,14]
[341381458,1730861447774,-500.0,0.0003863,14]
[341381459,1730861447784,-500.0,0.0003863,14]
[341381460,1730861447794,-546.4905657,0.0003863,14]
[341381461,1730861447804,-269.03531734,0.0003863,2]
[341381462,1730861447814,-305.1765523,0.0003863,14]
[341381463,1730861447824,-500.0,0.0003863,14]
[341381464,1730861447833,-500.0,0.0003863,14]
[341381465,1730861447843,-500.0,0.0003863,14]
[341381466,1730861447853,-259.262083,0.0003863,14]
[341381467,1730861447862,-160.90119693,0.0003863,14]
[341381468,1730861447872,-500.0,0.0003863,14]
[341381469,1730861447882,-500.0,0.0003863,14]
[341381470,1730861447891,-508.05801133,0.0003863,14]
[341381471,1730861447901,-151.0,0.0003863,14]
[341381472,1730861447911,-151.0,0.0003863,14]
[341381473,1730861447921,-500.0,0.0003863,14]
[341381474,1730861447931,-509.43836124,0.0003863,14]
[341381475,1730861447940,-194.65301787,0.0003863,14]
[341381476,1730861447950,-500.0,0.0003863,14]
[341381477,1730861447959,-405.2681438,0.0003863,14]
[341381478,1730861447969,-500.0,0.0003863,14]
[341381479,1730861447978,-500.0,0.0003863,14]
[341381480,1730861447988,-505.40638849,0.0003863,14]
[341381481,1730861447997,-500.0,0.0003863,14]
[341381482,1730861448007,-1006.39,0.0003863,14]
[341381483,1730861448017,-151.0,0.0003863,14]
[341381484,1730861448027,-151.0,0.0003863,14]
[341381485,1730861448037,-500.0,0.0003863,14]
[341381486,1730861448046,-268.710456,0.0003863,14]
[341381487,1730861448056,-500.0,0.0003863,14]
[341381488,1730861448066,-500.0,0.0003863,14]
[341381489,1730861448076,-509.64769425,0.0003863,14]
[341381490,1730861448085,-500.0,0.0003863,14]
[341381491,1730861448095,-237.5872132,0.0003863,14]
[341381492,1730861448105,-4410.12,0.0003863,14]
[341381493,1730861448115,-15.86024469,0.0003863,14]
[341381494,1730861448213,-374.77059724,0.0003863,14]
[341381497,1730861448316,150.0,0.00027,2]
[341381498,1730861448772,-1239.75,0.00038346,10]
[341381499,1730861448782,-500.0,0.00038356,14]
[341381500,1730861448791,-500.0,0.00038356,14]
[341381501,1730861448801,-213.936012,0.00038356,14]
[341381502,1730861448810,-213.936012,0.00038356,14]
[341381503,1730861448820,-123.55505419,0.0003863,14]
[341381504,1730861448830,-519.29843576,0.0003863,14]
[341381505,1730861448839,-3891.8,0.0003863,14]
[341381506,1730861448848,-526.79351522,0.0003863,14]
[341381507,1730861448858,-500.0,0.0003863,14]
[341381508,1730861448868,-509.68905568,0.0003863,14]
[341381509,1730861448878,-500.0,0.0003863,14]
[341381510,1730861448888,-510.76880227,0.0003863,14]
[341381511,1730861448898,-608.69904442,0.0003863,14]
[341381512,1730861448912,-505.54508492,0.0003863,14]
[341381513,1730861448924,-500.0,0.0003863,14]
[341381514,1730861448935,-500.0,0.0003863,14]
[341381515,1730861448944,-501.81148868,0.0003863,14]
[341381516,1730861448954,-500.0,0.0003863,14]
[341381517,1730861448963,-500.0,0.0003863,14]
[341381518,1730861448973,-500.0,0.0003863,14]
[341381519,1730861448983,-500.0,0.0003863,14]
[341381520,1730861448993,-500.0,0.0003863,7]
[341381521,1730861449002,-1171.94,0.0003863,14]
[341381522,1730861449011,-500.0,0.0003863,14]
[341381523,1730861449021,-500.0,0.0003863,14]
[341381524,1730861449030,-500.0,0.0003863,14]
[341381525,1730861449040,-500.0,0.0003863,14]
[341381526,1730861449050,-151.0,0.0003863,14]
[341381527,1730861449060,-500.0,0.0003863,14]
[341381528,1730861449070,-151.0,0.0003863,14]
[341381529,1730861449079,-500.0,0.0003863,14]
[341381530,1730861449089,-232.338376,0.0003863,14]
[341381531,1730861449098,-232.338376,0.0003863,14]
[341381532,1730861449108,-512.50156865,0.0003863,14]
[341381533,1730861449118,-500.0,0.0003863,14]
[341381534,1730861449128,-1278.09,0.0003863,14]
[341381535,1730861449137,-232.338376,0.0003863,14]
[341381536,1730861449147,-232.338376,0.0003863,14]
[341381537,1730861449160,-500.0,0.0003863,14]
[341381538,1730861449169,-500.0,0.0003863,14]
[341381539,1730861449178,-500.0,0.0003863,14]
[341381540,1730861449188,-500.0,0.0003863,14]
[341381541,1730861449198,-500.0,0.0003863,14]
[341381542,1730861449208,-500.0,0.0003863,14]
[341381543,1730861449218,-500.0,0.0003863,14]
[341381544,1730861449227,-500.0,0.0003863,14]
[341381545,1730861449237,-280.744155,0.0003863,14]
[341381546,1730861449247,-151.0,0.0003863,14]
[341381547,1730861449256,-507.85659535,0.0003863,14]
[341381548,1730861449265,-500.0,0.0003863,14]
[341381549,1730861449275,-522.57159631,0.0003863,14]
[341381550,1730861449284,-500.0,0.0003863,14]
[341381551,1730861449294,-505.14545706,0.0003863,14]
[341381552,1730861449303,-500.0,0.0003863,14]
[341381553,1730861449313,-512.05915916,0.0003863,14]
[341381554,1730861449323,-151.0,0.0003863,14]
[341381555,1730861449333,-151.0,0.0003863,14]
[341381556,1730861449343,-500.0,0.0003863,14]
[341381557,1730861449352,-504.03967886,0.0003863,14]
[341381558,1730861449362,-500.0,0.0003863,14]
[341381559,1730861449372,-500.0,0.0003863,14]
[341381560,1730861449382,-500.0,0.0003863,14]
[341381561,1730861449392,-500.0,0.0003863,14]
[341381562,1730861449403,-500.0,0.0003863,14]
[341381563,1730861449419,-91.06839088,0.0003863,14]
[341381564,1730861449432,-408.93160912,0.0003863,14]
[341381565,1730861449445,-158.85379088,0.0003863,14]
[341381566,1730861478251,1169.27083333,0.00020816,2]
[341381568,1730861600878,199.546599,0.00013973,2]
[341381569,1730862090686,1169.27083333,0.00020816,2]
[341381570,1730862126033,167.121724,0.00013973,2]
[341381575,1730862291961,58759.0,0.0002,60]
[341381953,1730862637213,-1169.27083333,0.0002329,2]
[341381955,1730862637223,-202.40235121,0.00025,2]
[341381957,1730862637234,-455.08,0.00025,2]
[341381960,1730862637244,-152.0,0.00025085,2]
[341381962,1730862637254,-168.894963,0.00025806,2]
[341381964,1730862637263,-273.293299,0.00025853,2]
[341381966,1730862637285,-247.63871414,0.00025899,2]
[341381968,1730862637298,-323.895715,0.00025986,2]
[341381970,1730862637309,-323.895715,0.00025993,2]
[341381971,1730862637319,-323.895715,0.00025999,2]
[341381973,1730862637329,-323.895715,0.00026006,2]
[341381975,1730862637339,-323.895715,0.00026013,2]
[341381977,1730862637348,-323.895715,0.0002602,2]
[341381979,1730862637358,-323.895715,0.00026027,2]
[341381981,1730862637368,-323.895715,0.00026034,2]
[341381983,1730862637377,-323.895715,0.00026041,2]
[341381985,1730862637387,-323.895715,0.00026047,2]
[341381988,1730862637396,-323.895715,0.00026054,2]
[341381990,1730862637405,-323.895715,0.00026061,2]
[341381992,1730862637416,-323.895715,0.00026068,2]
[341381994,1730862637426,-323.895715,0.00026075,2]
[341381996,1730862637435,-323.895715,0.00026082,2]
[341381998,1730862637445,-323.895715,0.00026089,2]
[341382000,1730862637455,-323.895715,0.00026095,2]
[341382002,1730862637465,-300.0,0.00026102,2]
[341382004,1730862637475,-323.895715,0.00026102,2]
[341382006,1730862637486,-300.0,0.00026109,2]